lending/lending_fUSD_20240806
["ID","MTS","AMOUNT","RATE_DAILY","PERIOD"]
[334322832,1722973837748,-5510.06098439,0.000105,2]
[334322833,1722973837759,-11291.99679093,0.000105,2]
[334322834,1722973837771,-697.22222227,0.000105,2]
[334322835,1722973837784,-30191.49050462,0.000105,2]
[334322836,1722973837796,-19851.5830375,0.000105,2]
[334322837,1722973837834,-443.81585153,0.000105,2]
[334322838,1722973837845,-3577.93033738,0.000105,2]
[334322839,1722973837857,-259.10297569,0.000105,2]
[334322840,1722973837902,-425354.23895954,0.000105,2]
[334322841,1722973837913,-106989.09617433,0.000105,2]
[334322842,1722973837922,-254115.65261791,0.000105,2]
[334322843,1722973838016,-381.33465368,0.000105,2]
[334322844,1722973838079,-323.22377818,0.000105,2]
[334322845,1722973838091,-541.90799385,0.000105,2]
[334322860,1722973840314,-1300.57762487,0.000105,2]
[334322862,1722973840327,-2430.53542353,0.000105,2]
[334322863,1722973840341,-891.51412651,0.000105,2]
[334322864,1722973840354,-2409.35153101,0.000105,2]
[334322865,1722973840366,-21801.74223655,0.000105,2]
[334322866,1722973840379,-392.85540526,0.000105,2]
[334322867,1722973840391,-697.03005567,0.000105,2]
[334322868,1722973840402,-205028.33458789,0.000105,2]
[334322869,1722973840415,-1396.69046004,0.000105,2]
[334322870,1722973840427,-1225.9364753,0.000105,2]
[334322871,1722973840439,-1548.34307602,0.000105,2]
[334322872,1722973840451,-509.73860691,0.000105,2]
[334322873,1722973840463,-649.02,0.000105,2]
[334322874,1722973840474,-1092.27862809,0.000105,2]
[334322875,1722973840486,-644.10641409,0.000105,2]
[334322876,1722973840498,-3291.39065368,0.000105,2]
[334322881,1722973842692,-764.40839942,0.00010499,2]
[334322884,1722973842708,-36.49208049,0.000105,2]
[334322886,1722973842724,-3401.48620004,0.000105,2]
[334322887,1722973842756,-627.59413878,0.000105,2]
[334322889,1722973842772,-778.84,0.000105,2]
[334322890,1722973842816,-478.6711612,0.000105,2]
[334322891,1722973842832,-2425.04959483,0.000105,2]
[334322892,1722973842848,-869.95370905,0.000105,2]
[334322894,1722973843624,-1968.40098272,0.000105,2]
[334322898,1722973845858,-362.21058335,0.00010499,2]
[334322899,1722973845879,-402.19781607,0.00010499,2]
[334322900,1722973845892,-2588.30254989,0.000105,2]
[334322901,1722973845907,-612.67,0.000105,2]
[334322902,1722973845925,-539.64431596,0.000105,2]
[334322903,1722973846090,-3563.53269341,0.000105,2]
[334322904,1722973846107,-2736.68052682,0.000105,2]
[334322905,1722973846124,-9789.77510328,0.000105,2]
[334322906,1722973846141,-273.72011597,0.000105,2]
[334322908,1722973846157,-413.1192,0.000105,2]
[334322910,1722973846174,-281.00881241,0.000105,2]
[334322913,1722973846191,-2836.5862804,0.000105,2]
[334322934,1722974126843,170.14,7.879e-05,2]
[334322935,1722974256123,150.0,0.00025,60]
[334322936,1722974272189,150.0,0.00027,120]
[334322938,1722974292975,948.14446095,9.55e-05,2]
[334322939,1722974305453,214.78,8.219e-05,2]
[334322940,1722974411794,2519.6318221,8.219e-05,2]
[334322941,1722974415712,868.11357036,8.219e-05,2]
[334322942,1722974418265,227.65723628,8.219e-05,2]
[334322943,1722974423105,3321.42222844,8.219e-05,2]
[334322944,1722974525876,227.65723628,8.219e-05,2]
[334322947,1722974628261,227.65723628,8.219e-05,2]
[334322948,1722974639669,227.65723628,8.219e-05,2]
[334322951,1722974754072,227.47081143,8.219e-05,2]
[334322953,1722974780619,224.68,8.219e-05,2]
[334323077,1722975031874,-172.56,9.696e-05,2]
[334323078,1722975031884,-141.01105066,9.737e-05,2]
[334323079,1722975031896,-394.34894934,9.737e-05,2]
[334323080,1722975031905,-261.25817472,9.768e-05,2]
[334323081,1722975031981,-35.1256571,9.768e-05,2]
[334323082,1722975031990,-154.12,9.768e-05,2]
[334323083,1722975032000,-464.64,9.785e-05,2]
[334323084,1722975032010,-300.0,9.861e-05,2]
[334323085,1722975032020,-300.0,9.861e-05,2]
[334323086,1722975032029,-736.5947,9.862e-05,2]
[334323087,1722975032039,-173.32,9.915e-05,2]
[334323088,1722975032049,-550.0,0.0001,2]
[334323089,1722975032059,-179.61012932,0.0001,2]
[334323090,1722975032069,-150.0,0.00010271,2]
[334323091,1722975032079,-555.0,0.00010272,2]
[334323092,1722975032088,-1154.0,0.00010272,2]
[334323093,1722975032098,-1052.871,0.00010272,2]
[334323094,1722975032108,-676.068,0.00010272,2]
[334323095,1722975032118,-1203.0,0.00010272,2]
[334323096,1722975032129,-9238.369,0.00010272,2]
[334323097,1722975032139,-1106.19424815,0.0001029,2]
[334323098,1722975032149,-1136.00353138,0.0001029,2]
[334323099,1722975032159,-150.99,0.0001029,2]
[334323100,1722975032168,-733.4882,0.000104,2]
[334323101,1722975032178,-271.95361289,0.000104,2]
[334323102,1722975032188,-190.07546064,0.000104,2]
[334323103,1722975032198,-164.80042231,0.000104,2]
[334323104,1722975032208,-241.32486,0.000104,2]
[334323105,1722975032218,-224.68,0.00010463,2]
[334323106,1722975032228,-200.0,0.00010473,2]
[334323107,1722975032237,-331.79550814,0.00010473,2]
[334323108,1722975032247,-7166.4785362,0.00010493,2]
[334323109,1722975032257,-1127.0385531,0.00010493,2]
[334323110,1722975032266,-838.6183652,0.00010493,2]
[334323111,1722975032279,-548.0,0.000105,2]
[334323112,1722975032289,-18382.50344502,0.000105,2]
[334323113,1722975032301,-3834.18185265,0.000105,2]
[334323114,1722975032313,-10130.5353258,0.000105,2]
[334323115,1722975032325,-102263.20947535,0.000105,2]
[334323116,1722975032337,-8134.79144426,0.000105,2]
[334323117,1722975032349,-262.08929882,0.000105,2]
[334323118,1722975032361,-440.02923298,0.000105,2]
[334323119,1722975032372,-2883.21346343,0.000105,2]
[334323120,1722975032384,-545.15058203,0.000105,2]
[334323121,1722975032397,-321.325548,0.000105,2]
[334323138,1722975037982,-428.61941707,0.00010272,2]
[334323139,1722975037994,-646.38058293,0.00010272,2]
[334323140,1722975038003,-168.61941707,0.00010473,2]
[334323141,1722975038027,-31.38058293,0.00010473,2]
[334323142,1722975038036,-278.85952412,0.000105,2]
[334323143,1722975038048,-306.42367944,0.000105,2]
[334323144,1722975038059,-7457.2856901,0.000105,2]
[334323145,1722975038070,-552.62070963,0.000105,2]
[334323146,1722975038143,-842.47852763,0.000105,2]
[334323152,1722975040242,-961.27203814,0.000105,2]
[334323153,1722975040255,-74404.45297565,0.000105,2]
[334323155,1722975040268,-231066.32492653,0.000105,2]
[334323156,1722975040280,-1399.85886565,0.000105,2]
[334323157,1722975040291,-422.38292566,0.000105,2]
[334323159,1722975040303,-2275.59153931,0.000105,2]
[334323161,1722975040315,-435.23695744,0.000105,2]
[334323267,1722975044075,-590.329,0.000105,2]
[334323268,1722975044086,-303144.61468863,0.000105,2]
[334323270,1722975045942,-11651.21138074,9.861e-05,2]
[334323271,1722975045957,-2547.92756546,9.861e-05,2]
[334323273,1722975046023,-3144.75596649,9.861e-05,2]
[334323274,1722975046035,-379.8763603,9.861e-05,2]
[334323275,1722975046051,-2899.07416389,9.861e-05,2]
[334323276,1722975046071,-2113.29032618,9.861e-05,2]
[334323277,1722975046080,-6214.98189099,0.000105,2]
[334323278,1722975046150,-250.68,0.000105,2]
[334323279,1722975046166,-2082.15278321,0.000105,2]
[334323280,1722975046183,-1470.7035555,0.000105,2]
[334323305,1722975046577,-9683.56,0.00021589,30]
[334323309,1722975046625,-500.0,0.0002349,30]
[334323310,1722975046653,-500.0,0.0002349,30]
[334323311,1722975046680,-500.0,0.0002349,30]
[334323313,1722975046709,-500.0,0.0002349,30]
[334323317,1722975046735,-500.0,0.0002349,30]
[334323320,1722975046760,-500.0,0.0002349,30]
[334323324,1722975046785,-500.0,0.0002349,30]
[334323328,1722975046813,-500.0,0.0002349,30]
[334323331,1722975046840,-500.0,0.0002349,30]
[334323335,1722975046866,-500.0,0.0002349,30]
[334323338,1722975046891,-500.0,0.0002349,30]
[334323342,1722975046918,-500.0,0.0002349,30]
[334323346,1722975046946,-500.0,0.0002349,30]
[334323349,1722975046975,-500.0,0.0002349,30]
[334323353,1722975047003,-500.0,0.0002349,30]
[334323357,1722975047031,-500.0,0.0002349,30]
[334323360,1722975047057,-500.0,0.0002349,30]
[334323364,1722975047084,-500.0,0.0002349,30]
[334323368,1722975047110,-500.0,0.0002349,30]
[334323371,1722975047137,-500.0,0.0002349,30]
[334323375,1722975047165,-500.0,0.0002349,30]
[334323379,1722975047194,-500.0,0.0002349,30]
[334323383,1722975047223,-500.0,0.0002349,30]
[334323387,1722975047251,-500.0,0.0002349,30]
[334323390,1722975047278,-500.0,0.0002349,30]
[334323394,1722975047305,-500.0,0.0002349,30]
[334323398,1722975047332,-500.0,0.0002349,30]
[334323402,1722975047361,-500.0,0.0002349,30]
[334323406,1722975047389,-500.0,0.0002349,30]
[334323409,1722975047417,-500.0,0.0002349,30]
[334323413,1722975047446,-500.0,0.0002349,30]
[334323417,1722975047483,-500.0,0.0002349,30]
[334323421,1722975047511,-500.0,0.0002349,30]
[334323424,1722975047539,-500.0,0.0002349,30]
[334323428,1722975047570,-500.0,0.0002349,30]
[334323432,1722975047598,-500.0,0.0002349,30]
[334323436,1722975047626,-647.2523742,0.0002349,30]
[334323440,1722975047654,-500.0,0.0002349,30]
[334323444,1722975047682,-500.0,0.0002349,30]
[334323447,1722975047710,-500.0,0.0002349,30]
[334323451,1722975047739,-500.0,0.0002349,30]
[334323455,1722975047766,-500.0,0.0002349,30]
[334323459,1722975047794,-500.0,0.0002349,30]
[334323463,1722975047822,-500.0,0.0002349,30]
[334323466,1722975047849,-500.0,0.0002349,30]
[334323470,1722975047876,-500.0,0.0002349,30]
[334323474,1722975047903,-500.0,0.0002349,30]
[334323477,1722975047930,-500.0,0.0002349,30]
[334323481,1722975047963,-500.0,0.0002349,30]
[334323485,1722975047997,-500.0,0.0002349,30]
[334323489,1722975048024,-500.0,0.0002349,30]
[334323493,1722975048052,-500.0,0.0002349,30]
[334323497,1722975048081,-500.0,0.0002349,30]
[334323501,1722975048109,-500.0,0.0002349,30]
[334323505,1722975048138,-500.0,0.0002349,30]
[334323509,1722975048165,-500.0,0.0002349,30]
[334323512,1722975048194,-500.0,0.0002349,30]
[334323516,1722975048223,-500.0,0.0002349,30]
[334323547,1722975048529,-500.0,0.0002349,30]
[334323550,1722975048561,-589.36648484,0.0002349,30]
[334323698,1722975050250,-602.52,0.00024657,30]
[334324109,1722975204854,577.41,0.00024657,30]
[334324110,1722975213274,552.75075529,0.00024657,50]
[334324112,1722975266322,261.04,8.219e-05,2]
[334324113,1722975316275,552.75075529,0.00024657,50]
[334324114,1722975342498,8876.59,0.00021589,30]
[334324115,1722975427294,552.75075529,0.00021589,50]
[334324116,1722975442291,552.75075529,0.00021589,50]
[334324119,1722975561288,552.75075529,0.00021589,50]
[334324121,1722975620406,1000.0,0.00024658,30]
[334324122,1722975624040,1000.0,0.00024658,30]
[334324123,1722975627587,1000.0,0.00024658,30]
[334324124,1722975628266,1000.0,0.00024658,30]
[334324125,1722975628803,1000.0,0.00024658,30]
[334324127,1722975642597,220.06663785,0.00021589,50]
[334324129,1722975689714,1000.0,0.00024658,30]
[334324130,1722975691603,1012.0,0.00024658,30]
[334324132,1722975704848,218.72,0.00025,60]
[334324134,1722975709831,168.62,9.556e-05,2]
[334324135,1722975724201,247.98,8.219e-05,2]
[334324136,1722975729895,1775.33,9.516e-05,2]
[334324137,1722975729982,501.0,0.00024658,30]
[334324138,1722975732720,1000.0,0.00024658,30]
[334324140,1722975807888,8136.87,0.00021589,30]
[334324147,1722975905732,208.99,9.518e-05,2]
[334324157,1722976109204,1180397.57177211,0.00027,120]
[334324305,1722976181003,-173.32,9.563e-05,2]
[334324306,1722976181043,-701.33338076,9.568e-05,2]
[334324307,1722976182467,200.0,9.414e-05,2]
[334324318,1722976232112,-271.05628702,9.568e-05,2]
[334324319,1722976232127,-570.08033222,9.568e-05,2]
[334324320,1722976232136,-428.29,9.591e-05,2]
[334324321,1722976232146,-166.66,9.945e-05,2]
[334324322,1722976232156,-156.73,9.945e-05,2]
[334324323,1722976232165,-156.73,9.951e-05,2]
[334324324,1722976232175,-156.73,9.956e-05,2]
[334324325,1722976232184,-156.73,9.962e-05,2]
[334324326,1722976232193,-156.73,9.967e-05,2]
[334324327,1722976232203,-300.0,9.972e-05,2]
[334324328,1722976232213,-156.73,9.973e-05,2]
[334324329,1722976232222,-499.99,9.973e-05,2]
[334324330,1722976232232,-6102.15772108,9.973e-05,2]
[334324331,1722976232243,-420.98804803,9.973e-05,2]
[334324332,1722976232258,-1329.28402773,9.973e-05,2]
[334324333,1722976232270,-2147.56020316,9.973e-05,2]
[334324334,1722976232280,-571.71,9.974e-05,2]
[334324335,1722976232290,-156.73,9.978e-05,2]
[334324336,1722976232300,-156.73,9.984e-05,2]
[334324337,1722976232309,-2255.02,9.984e-05,2]
[334324338,1722976232318,-156.73,9.989e-05,2]
[334324339,1722976232327,-156.73,9.995e-05,2]
[334324340,1722976232337,-550.0,0.0001,2]
[334324341,1722976232346,-3209.67509495,0.0001037,2]
[334324342,1722976232357,-2999.0,0.0001037,2]
[334324344,1722976232369,-1194.16341982,0.0001037,2]
[334324346,1722976232378,-150.0,0.00010399,2]
[334324348,1722976232387,-1273.76802184,0.000104,2]
[334324351,1722976232412,-16603.53567816,0.000104,2]
[334324353,1722976232422,-3604.1128,0.000104,2]
[334324355,1722976232432,-1066.75437018,0.000104,2]
[334324358,1722976232443,-4036.76951601,0.000104,2]
[334324360,1722976232455,-397.82076205,0.000104,2]
[334324361,1722976232467,-283.36223065,0.000104,2]
[334324362,1722976232479,-1183.24212111,0.000104,2]
[334324363,1722976232488,-4356.11079888,0.000104,2]
[334324364,1722976232500,-3542.44320112,0.000104,2]
[334324365,1722976232509,-241.32486,0.000104,2]
[334324366,1722976232518,-1861.76081888,0.000104,2]
[334324367,1722976232530,-712.79851112,0.000104,2]
[334324368,1722976232539,-241.32487,0.0001045,2]
[334324369,1722976232550,-247.98,0.00010452,2]
[334324370,1722976232560,-1797.89661888,0.0001048,2]
[334324371,1722976232572,-2456.7,0.0001048,2]
[334324372,1722976232588,-270.26587227,0.0001048,2]
[334324375,1722976238084,-620.0,0.0001048,2]
[334324376,1722976238096,-23060.46675804,0.0001048,2]
[334324377,1722976238106,-241.32486,0.0001049,2]
[334324378,1722976238115,-156.43151343,0.00010497,2]
[334324379,1722976238127,-16895.12113543,0.000105,2]
[334324380,1722976238138,-955.27057878,0.000105,2]
[334324381,1722976238149,-414.74931863,0.000105,2]
[334324382,1722976238208,-275.96458678,0.000105,2]
[334324383,1722976238331,-363.43092739,0.000105,2]
[334324384,1722976238393,-544.57763909,0.000105,2]
[334324385,1722976238405,-11495.0,0.000105,2]
[334324386,1722976238417,-329.34787868,0.000105,2]
[334324536,1722976240104,-13123.46384223,0.000105,2]
[334324564,1722976240353,-56684.49987804,0.000105,2]
[334324614,1722976240830,-656.60656736,0.000105,2]
[334324617,1722976240842,-565.48,0.000105,2]
[334324788,1722976243101,-443.4506406,0.000105,2]
[334324790,1722976243113,-9430.62835365,0.000105,2]
[334324792,1722976243124,-6097.83191009,0.000105,2]
[334324827,1722976243742,-822.39069926,0.000105,2]
[334324829,1722976243754,-927.77,0.000105,2]
[334324831,1722976243765,-378.703701,0.000105,2]
[334324833,1722976243777,-4143.31,0.000105,2]
[334324836,1722976243792,-438.31518941,0.000105,2]
[334324838,1722976243803,-1383.95848256,0.000105,2]
[334324840,1722976243814,-293.80853246,0.000105,2]
[334324842,1722976243826,-1728.53770147,0.000105,2]
[334324844,1722976243837,-303144.61468863,0.000105,2]
[334324871,1722976247637,-3151.26942458,0.000105,2]
[334324895,1722976304272,223.18,8.219e-05,2]
[334324896,1722976304376,7458.79,0.00021589,30]
[334324897,1722976398985,553.36,0.00024657,30]
[334324900,1722976763971,6837.22,0.00021589,30]
[334324901,1722976765539,212.02,8.219e-05,2]
[334324906,1722977010314,530.3,0.00024657,30]
[334325034,1722977294804,6267.45,0.00021589,30]
[334325035,1722977326101,201.41,8.219e-05,2]
[334325193,1722977432245,-657.36,9.947e-05,2]
[334325194,1722977432255,-49.71731665,9.957e-05,2]
[334325195,1722977432267,-122.84268335,9.957e-05,2]
[334325196,1722977432282,-342.64,9.989e-05,2]
[334325197,1722977432292,-160.47,9.996e-05,2]
[334325198,1722977432302,-4.04645879,0.000104,2]
[334325199,1722977432324,-371.6925449,0.000104,2]
[334325200,1722977432339,-1026.71469631,0.000104,2]
[334325201,1722977432351,-182.7281,0.000104,2]
[334325202,1722977432361,-201.41,0.00010473,2]
[334325203,1722977432370,-1114.09224043,0.0001049,2]
[334325204,1722977432380,-150.0,0.00010499,2]
[334325205,1722977432389,-10842.3139113,0.000105,2]
[334325206,1722977432404,-6586.58,0.000105,2]
[334325207,1722977432416,-935.99632994,0.000105,2]
[334325208,1722977432428,-478.1956183,0.000105,2]
[334325209,1722977432439,-400.36772961,0.000105,2]
[334325210,1722977432451,-3921.29546248,0.000105,2]
[334325211,1722977432492,-577.17401886,0.000105,2]
[334325212,1722977432503,-337.835,0.000105,2]
[334325213,1722977432515,-2046.06,0.000105,2]
[334325214,1722977432552,-595.5625,0.000105,2]
[334325215,1722977432570,-5149.76122802,0.000105,2]
[334325216,1722977432582,-921.66411705,0.000105,2]
[334325217,1722977432594,-819.28,0.000105,2]
[334325243,1722977438265,-264.04349147,0.000105,2]
[334325244,1722977438330,-4582.82715659,0.000105,2]
[334325245,1722977438340,-150.148,0.000105,2]
[334325246,1722977438350,-151.144,0.000105,2]
[334325247,1722977438360,-2556.14698701,0.000105,2]
[334325248,1722977438372,-300.45999998,0.000105,2]
[334325249,1722977438438,-2531.31919415,0.000105,2]
[334325250,1722977438497,-1275.15327242,0.000105,2]
[334325377,1722977441446,-603.44697651,0.000105,2]
[334325378,1722977441459,-901.95462682,0.000105,2]
[334325379,1722977441564,-7860.91012865,0.000105,2]
[334325380,1722977441677,-49941.13052661,0.000105,2]
[334325381,1722977441688,-100054.60108673,0.000105,2]
[334325382,1722977441700,-60572.97796053,0.000105,2]
[334325383,1722977441712,-18794.51209489,0.000105,2]
[334325384,1722977441735,-79959.3871457,0.000105,2]
[334325385,1722977441746,-2549.448,0.000105,2]
[334325386,1722977441756,-1583.0,0.000105,2]
[334325387,1722977441765,-675.442,0.000105,2]
[334325388,1722977441776,-331.712,0.000105,2]
[334325389,1722977441786,-555.0,0.000105,2]
[334325390,1722977441796,-550.0,0.000105,2]
[334325391,1722977441805,-355.881,0.000105,2]
[334325392,1722977441814,-223.163,0.000105,2]
[334325393,1722977441824,-728.999,0.000105,2]
[334325394,1722977441833,-692.44,0.000105,2]
[334325395,1722977441843,-2225.90773,0.000105,2]
[334325396,1722977441852,-182.915,0.000105,2]
[334325397,1722977441862,-442.805,0.000105,2]
[334325398,1722977441871,-150.0,0.000105,2]
[334325399,1722977441881,-150.0,0.000105,2]
[334325400,1722977441890,-150.0,0.000105,2]
[334325401,1722977441901,-376.0427426,0.00010755,2]
[334325402,1722977441911,-620.0,0.00010755,2]
[334325403,1722977441921,-7500.0,0.00010799,2]
[334325404,1722977441930,-151.96,0.000108,2]
[334325405,1722977441940,-997.09739918,0.00010874,2]
[334325406,1722977441949,-165.86544247,0.00010896,2]
[334325407,1722977441959,-151.0,0.00010899,2]
[334325408,1722977441969,-151.0,0.00010899,2]
[334325409,1722977441980,-151.0,0.00010899,2]
[334325410,1722977441990,-270.661824,0.00010899,2]
[334325411,1722977441999,-151.0,0.00010899,2]
[334325412,1722977442009,-151.0,0.00010899,2]
[334325413,1722977442020,-151.0,0.00010899,2]
[334325414,1722977442030,-151.0,0.00010899,2]
[334325415,1722977442040,-151.0,0.00010899,2]
[334325416,1722977442049,-151.0,0.00010899,2]
[334325417,1722977442059,-158.347116,0.00010899,2]
[334325418,1722977442067,-151.0,0.00010899,2]
[334325419,1722977442076,-158.347116,0.00010899,2]
[334325420,1722977442087,-151.0,0.00010899,2]
[334325421,1722977442096,-151.0,0.00010899,2]
[334325422,1722977442107,-151.0,0.00010899,2]
[334325423,1722977442116,-151.0,0.00010899,2]
[334325424,1722977442125,-151.0,0.00010899,2]
[334325425,1722977442136,-151.0,0.00010899,2]
[334325426,1722977442145,-151.0,0.00010899,2]
[334325427,1722977442155,-912.067606,0.00010899,2]
[334325428,1722977442164,-912.067606,0.00010899,2]
[334325429,1722977442174,-151.0,0.00010899,2]
[334325430,1722977442183,-151.0,0.00010899,2]
[334325431,1722977442192,-151.0,0.00010899,2]
[334325433,1722977442201,-238.891626,0.00010899,2]
[334325435,1722977442210,-151.0,0.00010899,2]
[334325437,1722977442219,-238.891626,0.00010899,2]
[334325439,1722977442228,-151.0,0.00010899,2]
[334325441,1722977442238,-151.0,0.00010899,2]
[334325443,1722977442247,-151.0,0.00010899,2]
[334325445,1722977442256,-151.0,0.00010899,2]
[334325447,1722977442265,-151.0,0.00010899,2]
[334325449,1722977442279,-151.0,0.00010899,2]
[334325451,1722977442288,-199.858899,0.00010899,2]
[334325453,1722977442297,-199.858899,0.00010899,2]
[334325455,1722977442306,-161.106399,0.00010899,2]
[334325457,1722977442316,-151.0,0.00010899,2]
[334325459,1722977442326,-161.106399,0.00010899,2]
[334325461,1722977442335,-151.0,0.00010899,2]
[334325463,1722977442344,-49667.89640043,0.00010899,2]
[334325464,1722977442355,-49667.89640041,0.00010899,2]
[334325465,1722977442367,-49667.89640041,0.00010899,2]
[334325466,1722977442376,-49667.89640041,0.00010899,2]
[334325467,1722977442385,-49667.89640041,0.00010899,2]
[334325468,1722977442395,-49667.89640041,0.00010899,2]
[334325469,1722977442404,-6956.31585576,0.00010899,2]
[334325489,1722977443295,-150.327,0.000105,2]
[334325491,1722977443305,-42711.58054465,0.00010899,2]
[334325493,1722977443314,-22586.85216536,0.00010899,2]
[334325505,1722977444288,-27081.04423505,0.00010899,2]
[334325506,1722977444298,-49667.89640041,0.00010899,2]
[334325507,1722977444307,-151.0,0.00010899,2]
[334325508,1722977444317,-151.0,0.00010899,2]
[334325509,1722977444335,-151.0,0.00010899,2]
[334325510,1722977444351,-151.0,0.00010899,2]
[334325511,1722977444362,-151.0,0.00010899,2]
[334325512,1722977444372,-151.0,0.00010899,2]
[334325513,1722977444381,-151.0,0.00010899,2]
[334325514,1722977444390,-151.0,0.00010899,2]
[334325515,1722977444399,-151.0,0.00010899,2]
[334325516,1722977444408,-151.0,0.00010899,2]
[334325517,1722977444417,-151.0,0.00010899,2]
[334325518,1722977444426,-151.0,0.00010899,2]
[334325519,1722977444435,-1956.630863,0.00010899,2]
[334325520,1722977444445,-151.0,0.00010899,2]
[334325521,1722977444454,-151.0,0.00010899,2]
[334325522,1722977444463,-1956.630863,0.00010899,2]
[334325523,1722977444473,-151.0,0.00010899,2]
[334325524,1722977444482,-157.642821,0.00010899,2]
[334325525,1722977444491,-151.0,0.00010899,2]
[334325526,1722977444500,-151.0,0.00010899,2]
[334325527,1722977444509,-151.0,0.00010899,2]
[334325528,1722977444518,-151.0,0.00010899,2]
[334325529,1722977444527,-49667.89640041,0.000109,2]
[334325530,1722977444536,-974.7065124,0.000109,2]
[334325531,1722977444545,-974.70651235,0.000109,2]
[334325532,1722977444554,-974.70651235,0.000109,2]
[334325533,1722977444563,-974.70651235,0.000109,2]
[334325534,1722977444572,-974.70651235,0.000109,2]
[334325535,1722977444581,-974.70651235,0.000109,2]
[334325536,1722977444591,-974.70651235,0.000109,2]
[334325537,1722977444601,-974.70651235,0.000109,2]
[334325538,1722977444610,-153.75,0.000109,2]
[334325539,1722977444620,-407.57705666,0.000109,2]
[334325540,1722977444629,-2256.29555378,0.000109,2]
[334325541,1722977444638,-751.0,0.0001095,2]
[334325542,1722977444647,-498.02341338,0.00010958,2]
[334325543,1722977444657,-488.17311517,0.00010958,2]
[334325544,1722977444667,-500.0,0.00010958,2]
[334325545,1722977444676,-505.61123302,0.00010958,2]
[334325546,1722977444685,-500.0,0.00010958,2]
[334325547,1722977444695,-500.0,0.00010958,2]
[334325548,1722977444704,-500.0,0.00010958,2]
[334325549,1722977444713,-533.98964837,0.00010958,2]
[334325550,1722977444723,-500.0,0.00010958,2]
[334325551,1722977444731,-500.0,0.00010958,2]
[334325552,1722977444741,-500.0,0.00010958,2]
[334325553,1722977444750,-500.0,0.00010958,2]
[334325554,1722977444760,-454.20223286,0.00010958,2]
[334325555,1722977444769,-500.0,0.00010958,2]
[334325556,1722977444779,-500.0,0.00010958,2]
[334325557,1722977444788,-500.0,0.00010958,2]
[334325558,1722977444797,-500.0,0.00010958,2]
[334325559,1722977444807,-500.0,0.00010958,2]
[334325560,1722977444816,-500.0,0.00010958,2]
[334325561,1722977444826,-251.02520235,0.00010958,2]
[334325562,1722977444835,-500.0,0.00010958,2]
[334325563,1722977444853,-338.29801455,0.00010958,2]
[334325564,1722977444865,-373.43391688,0.00010958,2]
[334325565,1722977444874,-568.21767538,0.00010958,2]
[334325566,1722977444884,-500.0,0.00010958,2]
[334325567,1722977444894,-500.0,0.00010958,2]
[334325568,1722977444903,-546.97757297,0.00010958,2]
[334325569,1722977444914,-9937.94,0.00010959,2]
[334325570,1722977444923,-15234.66,0.00010959,2]
[334325571,1722977444933,-800.11,0.00010959,2]
[334325572,1722977444942,-6663.59,0.00010959,2]
[334325573,1722977444952,-150.0,0.00010959,2]
[334325574,1722977444962,-250.0,0.00010959,2]
[334325575,1722977444971,-107.07028257,0.00010959,2]
[334325576,1722977444984,-1892.92971743,0.00010959,2]
[334325577,1722977444995,-2805.0,0.00010986,2]
[334325578,1722977445006,-153.75,0.0001099,2]
[334325579,1722977445015,-153.75,0.0001099,2]
[334325580,1722977445025,-153.75,0.0001099,2]
[334325581,1722977445035,-153.75,0.0001099,2]